Cogmind - Beta 9.1 @@@ ROGUE MODE // 2019.11.09 @ 22:54:46 Player: moep Result: Self-destructed Performance ------------- Evolutions (1) 500 Regions Visited (2) 400 Robots Destroyed (27) 135 Value Destroyed (566) 566 Prototype IDs (2) 40 Alien Tech Used (0) 0 Bonus (0) 0 TOTAL SCORE: 1641 Bonus ------- None Cogmind --------- Core Integrity 303/400 Matter 258/300 Energy 100/100 System Corruption 2% Temperature Cool (176) Location -9/Materials Parts ------- Power (1) Propulsion (3) Aluminum Leg Aluminum Leg Utility (2) Large Storage Unit High-capacity Storage Unit Weapon (3) Shotgun Improved Assault Rifle Inventory (18) Ion Engine Light Ion Engine Light Treads Light Treads Aluminum Leg Aluminum Leg Aluminum Leg Terrain Scanner EM Pulse Gun Small Laser Advanced Beam Cannon Heavy Assault Rifle Heavy Assault Rifle Grenade Launcher Mini Grenade Launcher Mini Grenade Launcher Hammer Heavy Hammer Peak State ------------ Power Light Ion Engine Propulsion Aluminum Leg Aluminum Leg Aluminum Leg Utility Large Storage Unit High-capacity Storage Unit Weapon Advanced Beam Cannon Shotgun Improved Assault Rifle Inventory Ion Engine Light Ion Engine Light Treads Light Treads Aluminum Leg Terrain Scanner EM Pulse Gun Small Laser Advanced Beam Cannon Heavy Assault Rifle Heavy Assault Rifle Grenade Launcher Mini Grenade Launcher Mini Grenade Launcher Hammer Heavy Hammer [Rating: 16] Favorites ----------- Power Light Ion Engine Engine Light Ion Engine Propulsion Aluminum Leg Leg Aluminum Leg Utility High-capacity Storage Unit Storage High-capacity Storage Unit Weapon Shotgun Energy Gun EM Pulse Gun Energy Cannon Advanced Beam Cannon Ballistic Gun Shotgun Launcher Grenade Launcher Build | -11 -10 -9 ------- Run | Scr Mat Mat Slots Evolved 2 | . . 2 Power . | . . . Propulsion 1 | . . 1 Utility . | . . . Weapon 1 | . . 1 Parts Attached 24 | 7 9 8 Power 3 | 1 2 . Engine 3 | 1 2 . Core . | . . . Reactor . | . . . Propulsion 9 | 2 1 6 Treads . | . . . Leg 9 | 2 1 6 Wheel . | . . . Hover . | . . . Flight . | . . . Utility 3 | 1 2 . Device . | . . . Storage 3 | 1 2 . Processor . | . . . Hackware . | . . . Protection . | . . . Artifact . | . . . Weapon 9 | 3 4 2 Energy Gun 2 | 1 1 . Energy Cannon 1 | . . 1 Ballistic Gun 5 | 2 2 1 Ballistic Cannon . | . . . Launcher 1 | . 1 . Special Weapon . | . . . Impact Weapon . | . . . Slashing Weapon . | . . . Piercing Weapon . | . . . Special Melee Weapon . | . . . Unidentified Prototypes 2 | . . 2 Parts Lost 5 | . 2 3 Power 1 | . . 1 Propulsion 1 | . . 1 Utility . | . . . Weapon 3 | . 2 1 Highest Loss Streak 3 | . 2 3 Average Slot Usage (%) 92 | . 97 88 Engine 12 | . 13 11 Leg 26 | . 28 25 Storage 24 | . 26 22 Energy Gun 1 | . 3 . Energy Cannon 4 | . . 7 Ballistic Gun 21 | . 21 22 Launcher 1 | . 3 . Naked Turns . | . . . Heaviest Build 61 | 12 57 61 Greatest Support 30 | 20 20 30 Greatest Overweight (x) 3 | 3 2 3 Average Overweight (x) 1 | . 1 2 Largest Inventory Capacity 18 | 6 18 18 Average Capacity 15 | 5 13 18 Most Carried 18 | 3 14 18 Average Carried 10 | 1 7 14 Final Capacity 18 | 6 18 18 Final Carried 18 | 3 11 18 Class Distribution -------------------- 84% | Mutant 8% | Scavenger-Gunner 6% | Scavenger-Mutant Dominant Class ---------------- Mutant | -10/Materials Mutant | -9/Materials Resources | -11 -10 -9 ----------- Run | Scr Mat Mat Matter Collected 705 | 238 194 273 Remotely . | . . . Salvage Created 683 | . 236 447 Parts 56 | . 24 32 Haulers Intercepted . | . . . Recyclers Shooed . | . . . Parts Field Recycled . | . . . Retrieved Matter . | . . . Parts Self-Destructed . | . . . Prevented . | . . . Kills | -11 -10 -9 ------- Run | Scr Mat Mat Combat Hostiles Destroyed 23 | . 9 14 Guns 16 | . 5 11 Cannons 3 | . . 3 AOE 4 | . 4 . Classes Destroyed 8 | . 4 4 Worker 1 | . . 1 Recycler 1 | . 1 . Operator 1 | . 1 . Watcher 1 | . . 1 Swarmer 12 | . 6 6 Grunt 9 | . 3 6 Brawler 1 | . . 1 Sentry 1 | . . 1 Best Kill Streak 6 | . 6 4 Combat Bots Only 5 | . 5 4 Max Kills in Single Turn 2 | . 2 1 Gunslinging . | . . . Exploded 2 | . 2 . Melee . | . . . Uniques/NPCs Destroyed . | . . . Combat | -11 -10 -9 -------- Run | Scr Mat Mat Damage Taken 1337 | . 562 775 Core 206 | . 109 97 Absorbed by Shields . | . . . Core Remaining (%) 78 | 100 56 . Volleys Fired 83 | . 34 49 Largest 3 | . 2 3 Hottest 114 | . 40 114 Shots Fired 158 | . 56 102 Gun 123 | . 52 71 Cannon 31 | . . 31 Launcher 4 | . 4 . Special . | . . . Kinetic 115 | . 44 71 Thermal 31 | . . 31 Explosive 4 | . 4 . Electromagnetic 8 | . 8 . Robot Hit Streak 17 | . 14 17 Robot Miss Streak 4 | . 3 4 Penetration Max . | . . . Secondary Targets 2 | . 1 1 Max Gunslinging Chain 1 | . 1 1 Shots Hit Robots 105 | . 41 64 Core Hits 37 | . 16 21 Critical Hits 1 | . . 1 Critical Kills 1 | . . 1 Critical Parts Destroyed . | . . . Melee Attacks . | . . . Impact . | . . . Slashing . | . . . Piercing . | . . . Sneak Attacks . | . . . Combat Hostiles . | . . . Follow-up Attacks . | . . . Damage Inflicted 1353 | . 539 814 Guns 901 | . 292 609 Cannons 205 | . . 205 Explosions 247 | . 247 . Melee . | . . . Ramming . | . . . Kinetic 809 | . 200 609 Thermal 205 | . . 205 Explosive 247 | . 247 . Electromagnetic 92 | . 92 . Impact . | . . . Slashing . | . . . Piercing . | . . . Highest Corruption 2 | . . 2 Average Corruption 1 | . . 1 Corruption Purged . | . . . Effects 6 | . . 6 Message Errors 1 | . . 1 Heat Flow Errors 1 | . . 1 Targeting Errors 3 | . . 3 Weapon Failures 1 | . . 1 Overload Shots . | . . . Overflow Damage . | . . . Projectiles . | . . . Explosions . | . . . Melee . | . . . Knockbacks . | . . . Impact . | . . . Kinetic . | . . . Secondary . | . . . Self-Inflicted Damage 68 | . 68 . Shots 2 | . 2 . Rammed . | . . . Targets Rammed . | . . . Kicked . | . . . Crushed . | . . . Highest Temperature 220 | . 6 220 Average Temperature 68 | . 4 75 Received Heat Transfer 273 | . 54 219 Siege Activations . | . . . Robots Corrupted . | . . . Combat Hostiles . | . . . Parts Fried 1 | . 1 . Impact Corruptions . | . . . Robots Melted . | . . . Combat Hostiles . | . . . Parts Melted . | . . . Heat Transferred 370 | . . 370 Parts Sabotaged . | . . . Parts Stolen . | . . . Parts Stripped . | . . . Power Chain Reactions . | . . . Missiles Intercepted . | . . . Alert | -11 -10 -9 ------- Run | Scr Mat Mat Peak Influence 312 | . 225 312 Average Influence 88 | . 63 120 Maximum Alert Level 1 | . 1 1 Low Security (%) 88 | . . . Level 1 11 | . . . Level 2 . | . . . Level 3 . | . . . Level 4 . | . . . Level 5 . | . . . High Security . | . . . Max Security . | . . . Squads Dispatched 3 | . 2 1 Investigation 1 | . 1 . Extermination . | . . . Reinforcement 2 | . 1 1 Assault . | . . . Garrison . | . . . Intercept . | . . . Construction Impeded . | . . . Haulers Reinforced . | . . . Stealth | -11 -10 -9 --------- Run | Scr Mat Mat Distress Signals 1 | . . 1 Communications Jammed . | . . . Distress Signals . | . . . Times Spotted 36 | . 12 24 Peak Tracking Total 6 | . 5 6 Tactical Retreats 3 | . 1 2 Traps | -11 -10 -9 ------- Run | Scr Mat Mat Traps Triggered 3 | . 1 2 Indirectly . | . . . Trap Hack Attempts . | . . . Triggered . | . . . Disarmed . | . . . Reprogrammed . | . . . Reused . | . . . Traps Extracted . | . . . Installed . | . . . Triggered . | . . . Machines | -11 -10 -9 ---------- Run | Scr Mat Mat Machines Disabled 2 | . . 2 Max in Single Turn 1 | . . 1 Machines Sabotaged . | . . . Garrisons Compromised . | . . . Overloaded Fab Kills . | . . . Fab Network Shutdowns . | . . . Hacking | -11 -10 -9 --------- Run | Scr Mat Mat Machines Accessed 4 | . 3 1 Terminals 1 | . 1 . Fabricators . | . . . Repair Stations 1 | . . 1 Recycling Units 2 | . 2 . Scanalyzers . | . . . Garrison Access . | . . . Total Hacks 8 | . 7 1 Successful 7 | . 7 . Failed 1 | . . 1 Catastrophic . | . . . Database Lockouts . | . . . Manual . | . . . Terminals 1 | . 1 . Fabricators . | . . . Repair Stations 1 | . . 1 Recycling Units 6 | . 6 . Scanalyzers . | . . . Garrison Access . | . . . Terminal Hacks 1 | . 1 . Alert Level 1 | . 1 . Fabricator Hacks . | . . . Repair Station Hacks . | . . . Recycling Unit Hacks 6 | . 6 . Recycle Component 3 | . 3 . Process 1 | . 1 . Report Inventory 1 | . 1 . Retrieve Matter 1 | . 1 . Scanalyzer . | . . . Garrison Access Hacks . | . . . Unauthorized Hacks . | . . . Terminals . | . . . Fabricators . | . . . Repair Stations . | . . . Recycling Units . | . . . Scanalyzers . | . . . Garrison Access . | . . . Data Cores Recovered . | . . . Used . | . . . Hacking Detections 1 | . 1 . Full Trace Events . | . . . Feedback Events . | . . . Feedback Blocked . | . . . Robot Schematics Acquired . | . . . Robots Built . | . . . Matter . | . . . Time . | . . . Total Robot Build Rating . | . . . Part Schematics Acquired . | . . . Parts Built . | . . . Matter . | . . . Time . | . . . Total Part Build Rating . | . . . Parts Repaired . | . . . Time . | . . . Parts Recycled 3 | . 3 . Recycled Matter 159 | . 159 . Retrieved Matter . | . . . Retrieved Components . | . . . Parts Scanalyzed . | . . . Part Schematics Acquired . | . . . Parts Damaged . | . . . Bothacking | -11 -10 -9 ------------ Run | Scr Mat Mat Used RIF Installer . | . . . Robots Hacked . | . . . Non-combat . | . . . Combat . | . . . Robot Hacks Applied . | . . . Relay Couplers Released . | . . . Robots Rewired . | . . . Allies Hacked . | . . . Hacks Repelled . | . . . Allies | -11 -10 -9 -------- Run | Scr Mat Mat Total Allies . | . . . Largest Group . | . . . Highest-Rated Group . | . . . Highest-Rated Ally . | . . . Total Orders . | . . . Ally Attacks . | . . . Total Damage . | . . . Kills . | . . . Allies Corrupted . | . . . Allies Melted . | . . . Intel | -11 -10 -9 ------- Run | Scr Mat Mat Robot Analysis Total . | . . . Derelict Logs Recovered . | . . . Drone Launches . | . . . Drone Recoveries . | . . . Exploration | -11 -10 -9 ------------- Run | Scr Mat Mat Turns Passed 1496 | 68 691 737 Spaces Moved 691 | 52 344 295 Core 31 | 31 . . Treads . | . . . Legs 660 | 21 344 295 Wheels . | . . . Hover . | . . . Flight . | . . . Fastest Speed 50 | 50 120 180 Average Speed 174 | 101 169 192 Slowest Speed 210 | 200 180 210 Overloaded Moves . | . . . Propulsion Burnouts . | . . . Robots Hopped . | . . . Cave-ins Triggered . | . . . Exploration Rate (%) 28 | 3 54 27 Regions Visited 2 Branch Regions . Pre-discovered Areas . | . . . Known Exits Taken . | . . . Unknown Exits Taken 2 | 1 1 . Scrap Searched . | . . . Spaces Dug . | . . . Terrain Destroyed 32 | . 32 . Melee . | . . . Projectile . | . . . AOE 32 | . 32 . Actions | -11 -10 -9 --------- Run | Scr Mat Mat Total 839 | 64 405 370 Wait 14 | 3 2 9 Move 689 | 51 343 295 Hop . | . . . Pick Up 22 | 3 13 6 Fast Attach 11 | 6 4 1 Attach 3 | . 2 1 Detach 2 | . 2 . Swap 10 | 1 3 6 Drop 5 | . 2 3 Fire 83 | . 34 49 Melee . | . . . Ram . | . . . Kick . | . . . Crush . | . . . Escape Stasis . | . . . Rewire . | . . . Trap . | . . . Miscellaneous . | . . . Route ------- -11/Scrapyard -10/Materials (discovered 2 exits: *Mat / [*Min]) -9/Materials History --------- Turn | Location | Event 7 | -11/Scrapyard | Discovered new exit (range 15) 69 | -11/Scrapyard | Entered Materials 286 | -10/Materials | Discovered new exit (range 10) 315 | -10/Materials | Build established: Mutant 686 | -10/Materials | Discovered new exit (range 5) 760 | -10/Materials | Entered another Materials area 760 | -9/Materials | Evolved 2 slots: Propulsion x1, Weapon x1 1497 | -9/Materials | Self-destructed Last Messages --------------- 01420_ K-01 Serf collects debris. 01420_ Y-45 Defender destroyed. 01422_ K-01 Serf collects debris. 01427_ Acquired 51 matter. 01430_ K-01 Serf collects debris. 01442_ K-01 Serf cleans the Terminal. 01443_ K-01 Serf collects debris. 01458_ K-01 Serf cleans the Processing Tank. 01460_ B-36 Bruiser destroyed. 01461_ K-01 Serf cleans the Processing Tank. 01465_ Acquired 53 matter. 01466_ K-01 Serf cleans the Processing Tank. 01474_ S-10 Pest destroyed. 01484_ System corrupted: Imp. Assault Rifle targeting data glitched. 01487_ K-01 Serf cleans the Terminal. 01487_ U-05 Engineer builds a Door. 01487_ K-01 Serf cleans the Terminal. 01488_ Adv. Beam Cannon destroyed. 01494_ Lgt. Ion Engine destroyed. 01496_ Aluminum Leg destroyed. Map ----- +----------------------------------------------------+ | ?????????????????????????????????????????????????? | | ?????????????????????????????????????????????????? | | ?????????????????????????????????????????????????? | | ?????????????????????????????????????????????????? | | ?????????????????????????????????????????????????? | | ?????????????????????????????????????????????????? | | ?????????????????????????????????????????????????? | | ?????????????????????????????????????????????????? | | ?????????????????????????????????????????????????? | | ?????????????????????????????????????????????????? | | ?????????????????????????????????????????????????? | | ?????????????????????????????????????????????????? | | ?????????????????????????????????????????????????? | | ?????????????????????????????????????????????????? | | ????????????#+##?? ??????????????????????????????? | | ????????????? ?? #?????????????????????????????? | | ?????????????? #?????????????????????????????? | | ??????????????? ??????????????????????????????? | | ???????????????? ????????????#?????????????????? | | ??????????#######+#####??????? #?????????????????? | | ?????????## #?????? #?????????????????? | | ?????????# "" """ "#?????%= ??????????????????? | | ??????????# """ """ T#??###+###?????????????????? | | ??????????# "" """ "#??# s[ ###+###???????????? | | ??????????# "" =""" #### ??????????? | | ??????????# """ """ ! s @ T ??????????? | | ??????????# ! g /#### ??????????? | | ??????????######+######??? u ###+###???????????? | | ?############## #???????#g ##?????????????????? | | ?# # #????#### #??????????????????? | | ?# """ T #%==#????? # #??????????????????? | | ?# """ +!! #?????? / a#??????????????????? | | ?# """ #%==#???????# #??????????????????? | | ?# # #???????# #??????????????????? | | ?############## ##?????## ##?????????? ??????? | | ?????????????# ####### [ ########??? ??????? | | ?????????????# !% % #??? #?????? | | ?????????????# T ! T #??? #?????? | | ?????????????# #### #?????? | | ?????????????# ## ## ####% #?????? | | ?????????????###+#### ####+###??# #?????? | | ????????????????????# #?????????#! #?????? | | ????????????????????# #?????????#= ^ #?????? | | ????????????????????# #?????????#= #?????? | | ????????????????????# #?????????# #?????? | | ????????????????????# #?????????# #??#### | | ????????????????????# #?????????# ^""" #?? ==# | | ????????????????????# ########### """ ### ==# | | ????????????????????# """ !!# | | ????????????????????# !!# | +----------------------------------------------------+ Best States ------------- Heat Dissipation 28 Energy Generation 10 Energy Capacity 250 Matter Stores 300 Matter Capacity 300 Sight Range 16 Terrain Scan Density 10 Evasion (%) 50 Item Schematics ----------------- None Robot Schematics ------------------ None Fabricated ------------ Nothing Alien Tech Used ----------------- None Achievements -------------- Risk Taker Challenges ------------ None Game ------ Seed GhostHellfireProjector Manual? 0 Play Time 00:25:57 Cumulative 4.4 hours Start 2019.11.09 @ 22:25:01 End 2019.11.09 @ 22:54:46 Sessions 2 Manual Loads 0 Difficulty Rogue Special Mode None Game No. 13 Rogue 13 Adventurer 0 Explorer 0 Win Type - Total 0 Types 0/0/0/0/0/0/0 Lore% 1 Gallery% 6 Achievement% 3 Wizard Run 0 Options --------- ASCII 1 Keyboard 1 Movement Numpad Keybinds 0 Fullscreen 1 Font 24/Proggy Map View 76x50 Tactical HUD 1 Map Filters NONE Filters NONE Steam 1 RUN: 6856d390-c61b-46c5-be72-9f9e962eef7d